Entity,Date ,Expense Type,Expense Area,Supplier,Transaction Number,  Amount (�)  
South West Yorkshire NHS Foundation Trust,21-Mar-23,Purchase of Healthcare,AS Collaborative,Bradford District Care NHS Foundation Trust,203116,"998,695"
South West Yorkshire NHS Foundation Trust,14-Mar-23,Purchase of Healthcare,AS Collaborative,Cheswold Park Hospital,4890,"793,567"
South West Yorkshire NHS Foundation Trust,20-Mar-23,Purchase of Healthcare,AS Collaborative,Nottinghamshire Healthcare NHS Trust,1000056805,"713,730"
South West Yorkshire NHS Foundation Trust,10-Mar-23,Purchase of Healthcare,AS Collaborative,Leeds & York Partnership NHS Foundation Trust,999024,"571,562"
South West Yorkshire NHS Foundation Trust,13-Mar-23,Purchase of Healthcare,AS Collaborative,Cygnet Health Care Ltd,CYGWYS31,"544,330"
South West Yorkshire NHS Foundation Trust,29-Mar-23,Purchase of Healthcare,AS Collaborative,Cygnet Health Care Ltd,CYGWYS32,"544,330"
South West Yorkshire NHS Foundation Trust,21-Mar-23,Purchase of Healthcare,AS Collaborative,Bradford District Care NHS Foundation Trust,203115,"480,000"
South West Yorkshire NHS Foundation Trust,14-Mar-23,Purchase of Healthcare,AS Collaborative,Leeds & York Partnership NHS Foundation Trust,999047,"393,000"
South West Yorkshire NHS Foundation Trust,02-Mar-23,Purchase of Healthcare,AS Collaborative,Partnerships In Care Ltd,D510007761,"389,655"
South West Yorkshire NHS Foundation Trust,28-Mar-23,Purchase of Healthcare,AS Collaborative,Rotherham Doncaster & South Humber Mental Health NHS Foundation Trust,0000093749,"325,180"
South West Yorkshire NHS Foundation Trust,09-Mar-23,Purchase of Healthcare,AS Collaborative,Waterloo Manor Ltd,HO NHS LS 270,"295,636"
South West Yorkshire NHS Foundation Trust,07-Mar-23,Purchase of Healthcare,AS Collaborative,Sheffield Health & Social Care NHS Foundation Trust,2100118948,"293,365"
South West Yorkshire NHS Foundation Trust,23-Mar-23,Purchase of Healthcare,AS Collaborative,Sheffield Health & Social Care NHS Foundation Trust,2100119018,"293,365"
South West Yorkshire NHS Foundation Trust,14-Mar-23,Purchase of Healthcare,AS Collaborative,Leeds & York Partnership NHS Foundation Trust,999046,"288,000"
South West Yorkshire NHS Foundation Trust,14-Mar-23,Purchase of Healthcare,AS Collaborative,Sheffield Childrens NHS Foundation Trust,2100224398,"243,353"
South West Yorkshire NHS Foundation Trust,21-Mar-23,Rates,Barnsley,Barnsley Metropolitan Borough Council,CY56026530102023,"203,520"
South West Yorkshire NHS Foundation Trust,02-Mar-23,Purchase of Healthcare,AS Collaborative,Cheswold Park Hospital,4886,"194,656"
South West Yorkshire NHS Foundation Trust,23-Mar-23,Purchase of Healthcare,AS Collaborative,Sheffield Health & Social Care NHS Foundation Trust,2100119019,"188,824"
South West Yorkshire NHS Foundation Trust,30-Mar-23,Purchase of Healthcare,AS Collaborative,Cheswold Park Hospital,4926,"188,377"
South West Yorkshire NHS Foundation Trust,29-Mar-23,Purchase of Healthcare,AS Collaborative,Cygnet Health Care Ltd,CYGSYS09,"185,000"
South West Yorkshire NHS Foundation Trust,20-Mar-23,Computer Software,Trustwide,Softcat Plc,INVUK748582,"170,371"
South West Yorkshire NHS Foundation Trust,28-Mar-23,Consultancy,Trustwide,James Harvard Ltd,1012856953,"155,000"
South West Yorkshire NHS Foundation Trust,02-Mar-23,Purchase of Healthcare,AS Collaborative,Rotherham Doncaster & South Humber Mental Health NHS Foundation Trust,0000093670,"134,624"
South West Yorkshire NHS Foundation Trust,01-Mar-23,Purchase of Healthcare,AS Collaborative,Partnerships In Care Ltd,D510007756,"125,604"
South West Yorkshire NHS Foundation Trust,01-Mar-23,Computer Hardware,Trustwide,Dell Corporation Ltd,7402891958,"103,744"
South West Yorkshire NHS Foundation Trust,14-Mar-23,Staff Recharge,Trustwide,Sheffield Childrens NHS Foundation Trust,2100224398,"98,445"
South West Yorkshire NHS Foundation Trust,23-Mar-23,Rates,Kirklees,Kirklees Metropolitan Council,96916507327022392672,"92,672"
South West Yorkshire NHS Foundation Trust,09-Mar-23,IT Services,Trustwide,Daisy Corporate Services,3I505404,"90,250"
South West Yorkshire NHS Foundation Trust,23-Mar-23,Uniforms,Trustwide,Grahame Gardner Ltd,923851,"82,602"
South West Yorkshire NHS Foundation Trust,14-Mar-23,Staff Recharge,Trustwide,Sheffield Childrens NHS Foundation Trust,2100224398,"73,557"
South West Yorkshire NHS Foundation Trust,11-Mar-23,Drugs,Trustwide,Bradford Teaching Hospitals NHS Foundation Trust,323371,"71,593"
South West Yorkshire NHS Foundation Trust,14-Mar-23,Staff Recharge,Trustwide,Sheffield Childrens NHS Foundation Trust,2100224398,"71,292"
South West Yorkshire NHS Foundation Trust,14-Mar-23,Staff Recharge,Trustwide,Sheffield Childrens NHS Foundation Trust,2100224398,"66,251"
South West Yorkshire NHS Foundation Trust,10-Mar-23,Purchase of Healthcare,AS Collaborative,Leeds & York Partnership NHS Foundation Trust,999023,"63,771"
South West Yorkshire NHS Foundation Trust,21-Mar-23,Purchase of Healthcare,AS Collaborative,Humber NHS Foundation Trust,59892455,"62,643"
South West Yorkshire NHS Foundation Trust,14-Mar-23,Purchase of Healthcare,AS Collaborative,Humber NHS Foundation Trust,59891831,"61,701"
South West Yorkshire NHS Foundation Trust,20-Mar-23,Purchase of Healthcare,AS Collaborative,Humber NHS Foundation Trust,59891828,"58,515"
South West Yorkshire NHS Foundation Trust,21-Mar-23,Rates,Calderdale,Calderdale Metropolitan Borough Council,252023909989072023,"56,832"
South West Yorkshire NHS Foundation Trust,24-Mar-23,Drugs,Trustwide,Lloyds Pharmacy Ltd,114483,"56,569"
South West Yorkshire NHS Foundation Trust,22-Mar-23,Community Medical Packs,Trustwide,Corrmed Ltd,INV2847,"55,380"
South West Yorkshire NHS Foundation Trust,31-Mar-23,Purchase of Healthcare,Trustwide,Northorpe Hall Child & Family Trust,INV0474,"53,742"
South West Yorkshire NHS Foundation Trust,02-Mar-23,Computer Software,Trustwide,Softcat Plc,INVUK758513,"48,778"
South West Yorkshire NHS Foundation Trust,26-Mar-23,Staff Recharge,Trustwide,Bradford District Care NHS Foundation Trust,203163,"47,385"
South West Yorkshire NHS Foundation Trust,06-Mar-23,Purchase of Healthcare,AS Collaborative,Mersey Care NHS Foundation Trust,72484739,"46,230"
South West Yorkshire NHS Foundation Trust,01-Mar-23,Furniture & Fittings,Trustwide,Pineapple Contracts,SI83678,"45,486"
South West Yorkshire NHS Foundation Trust,23-Mar-23,Staff Recharge,Kirklees,Kirklees Council,8607791934,"45,250"
South West Yorkshire NHS Foundation Trust,10-Mar-23,Purchase of Healthcare,Trustwide,Sheffield Health & Social Care NHS Foundation Trust,2100118950,"45,091"
South West Yorkshire NHS Foundation Trust,14-Mar-23,Purchase of Healthcare,Trustwide,Invictus Wellbeing Services Cic,2023022,"45,000"
South West Yorkshire NHS Foundation Trust,24-Mar-23,Furniture & Fittings,Trustwide,Elysium Healthcare Ltd,12811203,"45,000"
South West Yorkshire NHS Foundation Trust,11-Mar-23,Drugs,Trustwide,NHS Business Services Authority,1000076207,"44,752"
South West Yorkshire NHS Foundation Trust,16-Mar-23,Purchase of Healthcare,Trustwide,Elysium Healthcare Ltd,CHA02986,"44,104"
South West Yorkshire NHS Foundation Trust,03-Mar-23,Mobile Phones,Trustwide,Vodafone Ltd,103359456,"43,743"
South West Yorkshire NHS Foundation Trust,28-Mar-23,Furniture & Fittings,Trustwide,Pineapple Contracts,SI84425,"43,632"
South West Yorkshire NHS Foundation Trust,11-Mar-23,Drugs,Trustwide,NHS Business Services Authority,1000075883,"43,559"
South West Yorkshire NHS Foundation Trust,21-Mar-23,Consultancy,Trustwide,James Harvard Ltd,1012855317,"43,050"
South West Yorkshire NHS Foundation Trust,27-Mar-23,Data Lines,Trustwide,Vodafone Ltd,103528618,"42,872"
South West Yorkshire NHS Foundation Trust,28-Mar-23,Furniture & Fittings,Trustwide,Pineapple Contracts,SI84423,"41,928"
South West Yorkshire NHS Foundation Trust,28-Mar-23,Staff Recharge,Trustwide,Leeds & York Partnership NHS Foundation Trust,999160,"41,721"
South West Yorkshire NHS Foundation Trust,23-Mar-23,Purchase of Healthcare,Forensics,Sheffield Childrens NHS Foundation Trust,2100224848,"41,391"
South West Yorkshire NHS Foundation Trust,14-Mar-23,Staff Recharge,Trustwide,Sheffield Childrens NHS Foundation Trust,2100224398,"37,908"
South West Yorkshire NHS Foundation Trust,13-Mar-23,Rates,Kirklees,Kirklees Metropolitan Council,96921639X2023,"37,632"
South West Yorkshire NHS Foundation Trust,22-Mar-23,Utilities,Trustwide,Edf Energy Customers Ltd,000014770783,"36,527"
South West Yorkshire NHS Foundation Trust,22-Mar-23,Audit Fees,Trustwide,Deloitte Llp,8003347496,"36,000"
South West Yorkshire NHS Foundation Trust,23-Mar-23,Staff Recharge,Trustwide,Bradford District Care NHS Foundation Trust,203149,"33,955"
South West Yorkshire NHS Foundation Trust,02-Mar-23,Computer Software,Trustwide,Mri Software Emea Ltd,MRIUK1014849,"33,776"
South West Yorkshire NHS Foundation Trust,22-Mar-23,Protective Clothing,Trustwide,Bitepro Ltd,105675,"33,190"
South West Yorkshire NHS Foundation Trust,28-Mar-23,Rates,Wakefield,Wakefield Metropolitan District Council,8885112606032023,"33,024"
South West Yorkshire NHS Foundation Trust,10-Mar-23,Staff Recharge,Trustwide,Leeds & York Partnership NHS Foundation Trust,999022,"32,871"
South West Yorkshire NHS Foundation Trust,10-Mar-23,Service Charge,Barnsley,Chapelfield Medical Centre,316,"32,630"
South West Yorkshire NHS Foundation Trust,23-Mar-23,Purchase of Healthcare,Trustwide,Elysium Healthcare Ltd,THO03698,"32,267"
South West Yorkshire NHS Foundation Trust,21-Mar-23,Consultancy,Trustwide,Robertson Cooper Ltd,INV0809,"32,173"
South West Yorkshire NHS Foundation Trust,20-Mar-23,Staff Recharge,Kirklees,Kirklees Council,8607815593,"32,171"
South West Yorkshire NHS Foundation Trust,09-Mar-23,Advocacy,Trustwide,Cloverleaf Advocacy 2000 Ltd,11863,"31,397"
South West Yorkshire NHS Foundation Trust,24-Mar-23,Rent,Kirklees,Sjm Developments Ltd,LINV51227,"30,450"
South West Yorkshire NHS Foundation Trust,22-Mar-23,Security Maintenance,Trustwide,Pinpoint Ltd,67730,"29,612"
South West Yorkshire NHS Foundation Trust,07-Mar-23,Purchase of Healthcare,AS Collaborative,Humber NHS Foundation Trust,59892411,"28,712"
South West Yorkshire NHS Foundation Trust,07-Mar-23,Purchase of Healthcare,Trustwide,Cygnet Surrey Ltd,WOK0278020,"27,860"
South West Yorkshire NHS Foundation Trust,13-Mar-23,Rates,Kirklees,Kirklees Metropolitan Council,9689426262023,"27,648"
South West Yorkshire NHS Foundation Trust,21-Mar-23,Rates,Barnsley,Barnsley Metropolitan Borough Council,CY56026542402023,"27,536"
South West Yorkshire NHS Foundation Trust,21-Mar-23,Rates,Kirklees,Kirklees Metropolitan Council,96891289427022317136,"27,136"
South West Yorkshire NHS Foundation Trust,07-Mar-23,Purchase of Healthcare,Trustwide,Cygnet Health Care Ltd,MAS0278055,"26,684"
South West Yorkshire NHS Foundation Trust,20-Mar-23,Purchase of Healthcare,Trustwide,Cygnet Health Care Ltd,WKE0277781,"26,684"
South West Yorkshire NHS Foundation Trust,13-Mar-23,Rates,Kirklees,Kirklees Metropolitan Council,9692164152023,"26,368"
South West Yorkshire NHS Foundation Trust,17-Mar-23,Purchase of Healthcare,Trustwide,Humber NHS Foundation Trust,59892383,"26,000"
South West Yorkshire NHS Foundation Trust,09-Mar-23,Computer Hardware,Trustwide,Community Links Ltd,2255,"25,670"
South West Yorkshire NHS Foundation Trust,23-Mar-23,Purchase of Healthcare,AS Collaborative,Sheffield Childrens NHS Foundation Trust,2100224726,"25,433"
South West Yorkshire NHS Foundation Trust,21-Mar-23,Consultancy,Trustwide,Liaison Financial Services Ltd,34073,"25,000"
South West Yorkshire NHS Foundation Trust,21-Mar-23,Purchase of Healthcare,Trustwide,Barnsley Community And Voluntary Services,77,"25,000"
South West Yorkshire NHS Foundation Trust,22-Mar-23,Purchase of Healthcare,Trustwide,Nova Wakefield District Ltd,1271,"25,000"
South West Yorkshire NHS Foundation Trust,22-Mar-23,Purchase of Healthcare,Trustwide,Third Sector Leaders Kirklees,1217,"25,000"
